bitfinex/quotes_ETHUSD_20230405
["timestamp","ask_amount","ask_price","bid_price","bid_amount"]
[1680662834549,0.00502532,1909.3,1909.0,0.78574]
[1680662835941,0.00502532,1909.3,1909.0,0.25853917]
[1680662836245,0.00502532,1909.3,1908.9,1.35867952]
[1680662836447,1.098,1909.0,1908.7,1.09874952]
[1680662836601,1.2078,1909.0,1908.8,0.26194]
[1680662837127,29.93,1909.6,1908.8,0.26194]
[1680662837309,0.002,1909.3,1909.1,1.8333]
[1680662837509,0.002,1909.7,1909.1,9.53905642]
[1680662837709,9.9807,1910.0,1909.4,1.83302]
[1680662837942,0.008,1910.0,1909.4,1.83302]
[1680662838136,1.098,1910.1,1909.7,0.94]
[1680662838365,1.098,1910.1,1909.8,0.2618]
[1680662838939,0.62485938,1910.0,1909.8,0.2618]
[1680662839236,0.62485938,1910.0,1909.8,0.78541]
[1680662840381,2.426,1909.9,1909.5,1.04935]
[1680662840557,0.23,1909.9,1909.5,0.26183]
[1680662840758,9.79722532,1909.9,1909.6,0.78549]
[1680662840959,1.098,1909.7,1909.6,0.26183]
[1680662841162,1.328,1909.7,1909.6,0.26183]
[1680662841877,1.328,1909.7,1909.6,0.78549]
[1680662842287,0.23,1909.7,1909.6,0.78549]
[1680662842943,0.85292704,1909.7,1909.6,0.78549]
[1680662843663,0.62292704,1909.7,1909.6,0.78549]
[1680662846830,0.00502532,1909.9,1909.6,0.78549]
[1680662847081,0.23502532,1909.9,1909.6,0.78549]
[1680662847244,2.194,1910.0,1909.6,0.78549]
[1680662847571,0.002,1910.2,1909.6,4.50057952]
[1680662847729,7.0557,1910.3,1909.6,4.50057952]
[1680662847934,7.0577,1910.3,1909.6,1.88823952]
[1680662848148,7.0577,1910.3,1909.6,1.88223952]
[1680662848344,7.0577,1910.3,1909.6,11.91553952]
[1680662848572,7.0577,1910.3,1909.6,11.92353952]
[1680662849833,7.0577,1910.3,1909.8,1.83256]
[1680662850048,2.196,1910.3,1909.8,1.83256]
[1680662850247,2.194,1910.3,1909.8,1.83256]
[1680662852145,2.194,1910.3,1909.9,0.01681566]
[1680662852475,2.194,1910.3,1910.0,2.31942]
[1680662853262,0.00502532,1910.4,1910.0,2.31942]
[1680662853461,0.23502532,1910.4,1910.0,2.31942]
[1680662854374,0.11200001,1910.5,1910.0,2.31942]
[1680662854689,0.11000001,1910.5,1910.0,2.31942]
[1680662856990,0.11000001,1910.5,1910.0,2.33623477]
[1680662857965,0.45112664,1910.4,1910.0,2.33623477]
[1680662862301,0.44720233,1910.4,1910.0,2.34223477]
[1680662867315,0.44720233,1910.4,1910.0,2.35978477]
[1680662880905,0.44720233,1910.4,1910.0,2.621312]
[1680662881105,0.44720233,1910.4,1910.1,3.0]
[1680662881316,0.44720233,1910.4,1910.2,1.83226]
[1680662882002,0.44720233,1910.4,1910.2,2.21126]
[1680662882214,0.44720233,1910.4,1910.2,1.16425]
[1680662882412,0.44720233,1910.4,1910.2,0.379]
[1680662882635,0.44720233,1910.4,1910.2,0.64075]
[1680662883135,0.44720233,1910.4,1910.2,1.16425]
[1680662885050,0.44720233,1910.4,1910.2,3.79853255]
[1680662885353,0.44720233,1910.4,1910.3,12.28381255]
[1680662885513,0.44720233,1910.4,1910.3,13.38256207]
[1680662885713,0.44720233,1910.4,1910.3,14.75349897]
[1680662885930,0.11000001,1910.5,1910.3,13.38256207]
[1680662886132,0.11000001,1910.5,1910.4,1.09435851]
[1680662886315,0.11000001,1910.5,1910.4,12.8871638]
[1680662886521,0.11000001,1910.5,1910.4,15.8891638]
[1680662887578,0.11000001,1910.5,1910.4,24.66852231]
[1680662887718,0.11000001,1910.5,1910.4,25.30304954]
[1680662887932,0.10689034,1910.5,1910.4,25.30504954]
[1680662888288,0.10689034,1910.5,1910.4,25.30304954]
[1680662888846,0.10689034,1910.5,1910.4,24.20869103]
[1680662889046,0.10689034,1910.5,1910.4,25.30304954]
[1680662889682,0.00089034,1910.5,1910.4,25.30304954]
[1680662890289,0.00089034,1910.5,1910.4,31.33757793]
[1680662890691,0.00089034,1910.5,1910.4,31.05952577]
[1680662891188,0.00089034,1910.5,1910.4,31.33757793]
[1680662891393,0.11000001,1910.7,1910.6,15.18079]
[1680662891537,0.11000001,1910.7,1910.6,20.81707255]
[1680662891744,0.11000001,1910.7,1910.6,22.1719025]
[1680662892175,0.11000001,1910.9,1910.8,15.28644]
[1680662892373,0.11000001,1910.9,1910.8,20.92272255]
[1680662892587,0.11000001,1910.9,1910.8,21.18424978]
[1680662892957,0.11000001,1910.9,1910.8,31.17844978]
[1680662894428,0.52874501,1911.6,1911.5,2.2]
[1680662894567,0.26094497,1911.6,1911.5,22.19751255]
[1680662894775,0.11000001,1911.9,1911.5,9.68023]
[1680662895019,0.11000001,1911.9,1911.6,3.0]
[1680662895312,0.11000001,1911.9,1911.7,0.78463]
[1680662895468,0.11000001,1911.9,1911.7,1.83081]
[1680662895668,5.506,1912.4,1911.7,2.20981]
[1680662895669,5.47102533,1912.4,1911.7,2.20981]
[1680662895869,0.5506,1912.3,1911.7,2.20981]
[1680662896071,0.36244348,1911.8,1911.7,2.23138462]
[1680662896914,0.506,1912.4,1911.7,2.23138462]
[1680662897123,0.23,1912.3,1911.7,2.23138462]
[1680662897300,0.51702825,1912.3,1911.7,2.23138462]
[1680662897802,0.28702825,1912.3,1911.7,2.23138462]
[1680662898004,0.32538649,1912.2,1911.7,2.23138462]
[1680662899080,0.32538649,1912.2,1911.9,1.8306]
[1680662899330,0.32538649,1912.2,1911.9,4.8306]
[1680662900480,0.32538649,1912.2,1912.0,0.385]
[1680662900680,0.32538649,1912.2,1912.1,0.26149]
[1680662900879,0.47992133,1912.2,1912.1,0.26149]
[1680662901128,0.47992133,1912.2,1912.1,0.78447]
[1680662901615,0.47992133,1912.2,1911.9,0.26351]
[1680662901816,0.47992133,1912.2,1912.0,0.6295]
[1680662902123,2.63428255,1912.2,1912.0,0.368]
[1680662902282,0.99342826,1912.1,1911.8,0.26152]
[1680662902489,0.49342826,1912.1,1911.8,0.78458]
[1680662902790,0.49342826,1912.1,1911.8,0.26152]
[1680662903012,0.48284702,1912.0,1911.8,0.26152]
[1680662903190,0.58047455,1912.0,1911.8,0.26152]
[1680662903381,0.58047455,1912.0,1911.4,0.008]
[1680662903587,0.58047455,1912.0,1911.9,0.388]
[1680662903833,3.00447455,1912.0,1911.9,0.388]
[1680662905422,7.8327571,1912.0,1911.4,0.008]
[1680662905623,3.64755826,1911.9,1911.4,0.26158]
[1680662906129,3.64755826,1911.9,1911.3,0.5232]
[1680662906426,3.64755826,1911.9,1911.2,0.2616]
[1680662906427,0.68307,1911.8,1911.2,0.2616]
[1680662906637,0.298307,1911.7,1911.3,0.2616]
[1680662907326,1.095,1911.6,1911.3,0.2616]
[1680662907925,1.095,1911.4,1911.2,0.2616]
[1680662908099,1.095,1911.4,1911.0,0.53128]
[1680662908301,1.095,1911.4,1911.1,0.26162]
[1680662908682,1.095,1911.2,1911.1,0.26162]
[1680662911115,0.1095,1911.4,1911.1,0.26162]
[1680662911323,1.091,1911.4,1911.1,0.78487]
[1680662911522,1.091,1911.4,1911.2,0.376]
[1680662911727,1.27412,1911.4,1911.2,0.376]
[1680662911924,3.95928255,1911.3,1911.2,0.376]
[1680662912339,3.95928255,1911.3,1910.9,0.26164]
[1680662912535,1.093,1911.1,1910.8,0.26165]
[1680662913117,3.72728255,1911.1,1910.8,0.26165]
[1680662913422,5.1591,1911.3,1910.6,0.26769]
[1680662913423,1.095,1910.9,1910.6,0.26769]
[1680662913655,1.093,1910.7,1910.6,0.78508]
[1680662914014,1.093,1910.7,1910.6,0.26169]
[1680662914339,1.323,1910.7,1910.6,0.26169]
[1680662914559,1.093,1910.7,1910.6,0.78508]
[1680662914861,1.093,1910.7,1910.6,0.26169]
[1680662915513,1.093,1910.7,1910.6,0.78508]
[1680662915949,1.093,1910.7,1910.6,0.26169]
[1680662916451,0.002,1910.9,1910.6,0.78508]
[1680662916652,1.093,1911.0,1910.6,0.78508]
[1680662917543,1.093,1911.0,1910.6,0.79108]
[1680662918651,1.09056567,1911.0,1910.6,0.79108]
[1680662919436,0.002,1911.1,1910.6,0.79108]
[1680662919764,5.0373,1911.2,1910.6,0.78508]
[1680662920059,6.1323,1911.2,1910.6,0.78508]
[1680662920815,6.1323,1911.2,1910.7,0.02158591]
[1680662921069,5.0373,1911.2,1910.7,0.02158591]
[1680662921217,0.995,1911.3,1910.8,1.83163]
[1680662921422,0.23,1911.2,1910.8,1.83763]
[1680662922056,29.932,1911.4,1910.8,1.83763]
[1680662922228,0.002,1911.4,1910.8,1.83763]
[1680662922427,15.1475,1911.5,1911.0,0.2]
[1680662922640,15.1475,1911.5,1911.1,0.78486]
[1680662922934,15.1475,1911.5,1910.9,0.52931]
[1680662922935,1.093,1911.3,1910.9,0.52931]
[1680662923131,1.093,1911.3,1911.2,0.217]
[1680662923332,3.72728255,1911.3,1910.9,0.006]
[1680662923665,1.095,1911.1,1911.0,0.112]
[1680662923963,1.325,1911.1,1911.0,0.112]
[1680662924320,3.95928255,1911.1,1911.0,0.112]
[1680662924779,3.95928255,1911.1,1910.8,0.26166]
[1680662924955,3.95928255,1911.1,1910.4,4.04889]
[1680662924956,5.498,1910.7,1910.4,0.002]
[1680662925157,5.498,1910.7,1910.0,0.1]
[1680662925158,4.928,1910.4,1910.0,0.1]
[1680662925472,1.091,1910.1,1910.0,0.1]
[1680662925626,3.72528255,1910.1,1910.0,0.1]
[1680662925826,3.95528255,1910.1,1910.0,0.1]
[1680662926027,3.134,1909.9,1909.7,0.004]
[1680662926343,12.59128255,1909.8,1909.6,0.1]
[1680662926540,9.77309255,1909.7,1909.6,0.1]
[1680662926771,9.35528255,1909.7,1909.6,0.1]
[1680662927070,9.53855255,1909.7,1909.6,0.1]
[1680662927366,10.63355255,1909.7,1909.6,0.1]
[1680662927574,11.16296587,1909.7,1909.6,0.1]
[1680662927730,10.97969587,1909.7,1909.6,0.1]
[1680662927933,12.59266246,1909.7,1909.6,0.1]
[1680662928845,12.59266246,1909.7,1908.8,0.106]
[1680662928846,3.234,1909.6,1908.8,0.106]
[1680662929042,1.095,1908.9,1908.8,0.1]
[1680662929241,1.095,1909.0,1908.8,0.1]
[1680662929468,0.23,1908.9,1908.8,0.1]
[1680662929832,0.23,1909.0,1908.8,0.1]
[1680662932987,0.51662826,1909.0,1908.8,0.1]
[1680662933131,2.188,1908.9,1908.8,0.09673032]
[1680662933330,2.418,1908.9,1908.8,0.09673032]
[1680662933944,8.39132359,1908.9,1908.8,0.09673032]
[1680662934260,8.39332359,1908.9,1908.8,0.09673032]
[1680662934456,2.89532359,1908.9,1908.8,0.09673032]
[1680662934656,2.89332359,1908.9,1908.8,0.09673032]
[1680662934863,2.418,1908.9,1908.8,0.09673032]
[1680662935238,2.194,1909.1,1908.8,0.09673032]
[1680662935461,4.82628255,1909.1,1908.8,0.09673032]
[1680662936780,0.23,1909.0,1908.8,0.09673032]
[1680662940877,4.82828255,1909.1,1908.9,0.26193]
[1680662940878,0.002,1909.1,1908.9,0.26193]
[1680662941048,0.23,1909.2,1908.8,0.35866032]
[1680662941247,2.86428255,1909.2,1908.8,0.35866032]
[1680662941477,2.196,1909.3,1908.8,0.35866032]
[1680662941678,2.188,1909.3,1908.8,0.35866032]
[1680662942084,2.192,1909.5,1908.8,0.35866032]
[1680662942285,2.63428255,1909.4,1908.8,0.35866032]
[1680662942841,0.23,1909.3,1908.8,0.35866032]
[1680662943279,0.23,1909.3,1909.0,1.645]
[1680662943476,0.23,1909.3,1909.0,1.90691]
[1680662943675,0.41332,1909.3,1909.0,1.645]
[1680662943956,4.82228255,1909.2,1909.0,1.645]
[1680662944162,0.18333,1909.1,1909.0,1.645]
[1680662944366,8.36228255,1909.1,1908.8,0.09673032]
[1680662944591,2.86428255,1909.0,1908.8,0.09673032]
[1680662946007,0.23,1909.0,1908.8,0.09673032]
[1680662948265,2.177,1909.3,1908.9,0.02160628]
[1680662948462,2.63428255,1909.3,1908.9,0.02160628]
[1680662948704,2.63428255,1909.3,1908.9,0.28352628]
[1680662948902,2.63428255,1909.3,1909.0,1.648]
[1680662949576,2.63428255,1909.3,1909.0,1.90991]
[1680662949772,0.23,1909.2,1909.0,1.90991]
[1680662951453,0.23,1909.2,1909.0,2.43374]
[1680662951815,0.23,1909.2,1909.0,1.90991]
[1680662952758,0.23,1909.2,1909.0,1.648]
[1680662953339,3.15071081,1909.2,1909.0,1.648]
[1680662953713,10.30728255,1909.1,1908.8,0.10273032]
[1680662953949,0.23,1909.0,1908.8,0.09673032]
[1680662954127,0.23,1909.0,1908.8,0.35867032]
[1680662954617,0.23,1909.0,1908.8,0.88255032]
[1680662954946,0.23,1909.1,1909.0,0.00313274]
[1680662955149,2.86428255,1909.1,1909.0,0.00313274]
[1680662955350,0.002,1909.2,1909.0,1.83653274]
[1680662955556,7.3973,1909.8,1909.0,4.26053274]
[1680662955864,3.37321255,1909.7,1909.0,4.26053274]
[1680662956030,3.37921255,1909.7,1909.1,3.0189975]
[1680662956219,3.37921255,1909.7,1909.2,0.78562]
[1680662956554,3.37921255,1909.7,1909.2,1.83317]
[1680662956852,0.006,1909.7,1909.2,1.83317]
[1680662957058,2.202,1909.8,1909.4,2.579]
[1680662957269,4.83628255,1909.8,1909.5,0.26184]
[1680662957416,5.31991081,1909.8,1909.5,0.78553]
[1680662957755,5.32191081,1909.8,1909.5,0.78553]
[1680662957958,5.32191081,1909.8,1909.5,3.44053]
[1680662958528,0.23,1909.7,1909.5,3.44053]
[1680662958877,0.236,1909.7,1909.5,3.44053]
[1680662959442,10.30728255,1909.6,1909.5,2.655]
[1680662959732,4.81728255,1909.6,1909.3,0.52575]
[1680662959959,2.89272826,1909.5,1909.3,0.78561]
[1680662960278,2.63428255,1909.4,1909.3,0.78561]
[1680662960429,2.419,1909.5,1909.3,0.26186]
[1680662960628,2.411,1909.5,1909.2,0.26188]
[1680662961133,2.411,1909.5,1909.2,0.78565]
[1680662962167,2.198,1909.6,1909.2,0.78565]
[1680662962467,0.006,1909.7,1909.2,0.78565]
[1680662962666,0.006,1909.8,1909.4,2.51]
[1680662962827,0.006,1909.8,1909.5,0.78553]
[1680662964346,0.006,1909.9,1909.5,0.80712949]
[1680662965752,0.236,1909.9,1909.5,0.80712949]
[1680662966642,0.4773,1909.9,1909.5,0.80712949]
[1680662966854,0.4773,1909.9,1909.3,0.52573]
[1680662966855,5.30758255,1909.9,1909.3,0.52573]
[1680662967056,5.30758255,1909.9,1909.7,2.409]
[1680662967057,5.06828255,1909.9,1909.7,2.409]
[1680662969246,5.06828255,1909.9,1909.7,2.67082]
[1680662970587,5.06828255,1909.9,1909.7,2.409]
[1680662970746,5.32911081,1909.8,1909.7,2.409]
[1680662970946,5.56711081,1909.8,1909.4,0.002]
[1680662971147,2.196,1909.7,1909.3,0.26186]
[1680662971491,3.08388255,1909.6,1909.2,0.26187]
[1680662971675,3.08388255,1909.6,1909.3,0.26187]
[1680662971871,3.08988255,1909.6,1909.3,0.26187]
[1680662973095,3.08988255,1909.6,1909.3,0.78562]
[1680662973695,0.4556,1909.6,1909.3,0.78562]
[1680662973861,0.236,1909.6,1909.3,0.78562]
[1680662976152,0.006,1909.6,1909.3,0.78562]
[1680662976352,2.202,1909.7,1909.3,0.78562]
[1680662976582,2.188,1909.6,1909.3,0.78562]
[1680662976791,2.194,1909.6,1909.3,0.78562]
[1680662977447,2.194,1909.6,1909.1,1.88822193]
[1680662977651,2.194,1909.6,1909.4,0.26186]
[1680662977846,0.18329,1909.5,1909.1,0.84066193]
[1680662978104,2.37729,1909.6,1909.1,0.84066193]
[1680662978401,2.194,1909.6,1909.1,1.10255193]
[1680662978553,2.194,1909.6,1909.1,0.80729401]
[1680662978886,2.194,1909.6,1909.3,0.26187]
[1680662979088,2.4134,1909.6,1909.2,2.87887]
[1680662979590,2.40352235,1909.6,1909.2,2.88487]
[1680662979768,2.18412235,1909.6,1909.2,3.40864]
[1680662980169,2.18412235,1909.6,1909.2,4.45619]
[1680662980668,2.18412235,1909.6,1909.2,5.27524792]
[1680662980880,2.18412235,1909.6,1909.2,5.27724792]
[1680662981192,2.204,1909.8,1909.4,1.83299]
[1680662981491,2.196,1909.8,1909.4,1.83299]
[1680662981792,2.196,1909.8,1909.5,2.532]
[1680662982002,2.196,1909.8,1909.6,0.26183]
[1680662982168,2.196,1909.9,1909.6,0.26183]
[1680662982366,0.23,1909.8,1909.6,0.26183]
[1680662984713,0.23,1909.8,1909.5,2.79983]
[1680662985005,0.23,1909.8,1909.5,2.79383]
[1680662985696,0.23,1909.8,1909.5,2.532]
[1680662986208,0.23,1909.8,1909.5,2.79384]
[1680662986565,0.23,1909.8,1909.5,2.532]
[1680662987365,0.23,1909.8,1909.5,2.79384]
[1680662987565,0.23,1909.8,1909.5,2.532]
[1680662988413,2.198,1909.9,1909.5,2.79384]
[1680662988709,2.196,1909.9,1909.5,2.532]
[1680662991390,2.196,1909.9,1909.5,2.79384]
[1680662991682,2.196,1909.9,1909.5,2.532]
[1680662993556,2.196,1909.9,1909.5,2.79384]
[1680662993712,0.008,1910.1,1909.6,0.81905792]
[1680662993906,0.23,1910.1,1909.6,1.08087792]
[1680662994214,0.23,1910.1,1909.7,0.81905792]
[1680662994439,0.23,1910.1,1909.7,3.54585792]
[1680662995026,0.11000001,1910.2,1909.7,3.54585792]
[1680662995625,0.11000001,1910.2,1909.7,3.28405792]
[1680662995854,0.11000001,1910.2,1909.7,13.12309106]
[1680662996035,0.11000001,1910.2,1909.7,13.64873106]
[1680662999472,0.11000001,1910.2,1909.7,14.0730462]
[1680663001293,0.11000001,1910.2,1909.7,15.43816645]
[1680663001989,0.11000001,1910.2,1909.8,1.0920962]
[1680663002297,0.11000001,1910.2,1909.9,0.26179]
[1680663004298,0.11000001,1910.2,1909.9,0.78537]
[1680663004487,0.11000001,1910.2,1910.0,2.646]
[1680663004687,0.11000001,1910.2,1910.1,0.26176]
[1680663005799,0.11000001,1910.2,1910.1,0.78529]
[1680663008187,0.11000001,1910.2,1910.1,1.88229]
[1680663008428,0.11000001,1910.7,1910.1,1.88229]
[1680663008429,0.11000001,1910.7,1910.1,30.7880855]
[1680663008587,0.11000001,1910.7,1910.5,1.91342256]
[1680663008787,0.11000001,1910.7,1910.6,1.83187]
[1680663008985,0.11000001,1910.7,1910.4,1.57232]
[1680663009247,0.11000001,1910.7,1910.5,2.76369]
[1680663009387,0.11000001,1910.7,1910.5,3.28711]
[1680663012491,0.11000001,1910.7,1910.5,5.90422]
[1680663012688,0.11000001,1910.7,1910.5,5.90622]
[1680663012926,0.11000001,1910.7,1910.5,9.63750255]
[1680663013128,0.11000001,1910.7,1910.6,4.83187]
[1680663015922,0.11000001,1910.7,1910.6,4.85345705]
[1680663018609,0.11000001,1910.7,1910.6,4.83187]
[1680663019135,0.11000001,1910.7,1910.6,4.83187]
[1680663021740,1.43700001,1910.7,1910.6,0.26169]
[1680663022040,0.49470001,1910.7,1910.6,0.78508]
[1680663022628,0.34000001,1910.7,1910.6,0.78508]
[1680663024344,0.11000001,1910.7,1910.6,0.78508]
[1680663024545,0.11000001,1910.7,1910.6,0.26169]
[1680663025056,0.11000001,1910.7,1910.5,2.95541]
[1680663025228,0.11000001,1910.7,1910.5,3.2171]
[1680663030965,0.10704606,1910.7,1910.5,3.2171]
[1680663032867,0.68008927,1910.6,1910.5,3.2171]
[1680663035463,0.68008927,1910.6,1910.4,0.26971]
[1680663035761,0.68008927,1910.6,1910.5,2.536]
[1680663035966,0.68008927,1910.6,1910.5,2.79771]
[1680663037282,0.68008927,1910.6,1910.5,2.536]
[1680663039083,9.98808535,1910.6,1910.5,2.536]
[1680663039287,10.42943535,1910.6,1910.2,0.006]
[1680663039482,1.094,1910.3,1910.1,0.26175]
[1680663039686,0.1094,1910.2,1910.0,0.26777]
[1680663039897,1.094,1910.3,1910.0,0.26777]
[1680663040133,1.094,1910.3,1910.0,0.26177]
[1680663041415,1.094,1910.3,1910.0,2.21333]
[1680663042016,1.094,1910.3,1910.0,1.68977]
[1680663043188,1.094,1910.3,1910.0,2.21333]
[1680663043492,1.094,1910.3,1910.0,1.428]
[1680663043493,1.30339,1910.3,1910.0,1.428]
[1680663043898,1.094,1910.3,1910.0,1.428]
[1680663044319,1.094,1910.3,1910.0,1.68977]
[1680663044688,1.094,1910.3,1910.0,2.21333]
[1680663045101,1.089,1910.5,1910.0,3.28204382]
[1680663045295,1.087,1910.5,1910.0,4.10346638]
[1680663045495,1.087,1910.5,1910.0,4.10946638]
[1680663047723,2.20955,1910.5,1910.0,4.10946638]
[1680663048099,1.097,1910.3,1910.0,1.434]
[1680663048434,1.087,1910.1,1910.0,1.434]
[1680663049629,1.087,1910.1,1910.0,1.428]
[1680663052135,1.094,1910.2,1910.0,1.68978]
[1680663052692,1.094,1910.2,1910.0,2.21334]
[1680663052925,0.6644107,1910.1,1910.0,2.21334]
[1680663054524,0.6644107,1910.1,1910.0,1.428]
[1680663054702,0.84025177,1910.1,1909.9,0.26779]
[1680663055024,0.6644107,1910.1,1910.0,1.39]
[1680663058912,1.2926407,1910.1,1910.0,1.39]
[1680663059116,0.66171588,1910.1,1910.0,1.39]
[1680663060841,1.98571588,1910.1,1909.9,0.26179]
[1680663061042,1.097,1910.0,1909.9,0.26179]
[1680663061539,1.097,1910.0,1909.9,0.21179]
[1680663062138,1.327,1910.1,1909.9,0.73537]
[1680663062502,1.097,1910.1,1909.9,0.73537]
[1680663062944,1.097,1910.1,1910.0,1.333]
[1680663063150,1.097,1910.1,1910.0,1.59478]
[1680663065134,1.097,1910.1,1910.0,2.11834]
[1680663066948,1.74751066,1910.1,1910.0,2.11834]
[1680663068526,1.74751066,1910.1,1910.0,1.59478]
[1680663070244,1.74751066,1910.1,1910.0,1.333]
[1680663071255,1.74751066,1910.1,1910.0,1.59478]
[1680663072284,0.65051066,1910.1,1910.0,1.59478]
[1680663072938,1.103,1910.3,1910.0,1.333]
[1680663073134,0.23,1910.2,1910.0,1.333]
[1680663073638,0.23,1910.2,1910.0,1.59478]
[1680663073970,0.23,1910.2,1910.0,1.333]
[1680663075694,0.23,1910.2,1910.0,1.59477]
[1680663076248,0.23,1910.2,1910.0,1.333]
[1680663076491,0.23,1910.2,1910.0,1.59477]
[1680663076693,0.37373,1910.2,1910.0,1.59477]
[1680663076983,0.23,1910.2,1910.0,1.59477]
[1680663083116,0.63265947,1910.1,1910.0,1.59477]
[1680663083933,0.62946866,1910.1,1910.0,1.59477]
[1680663084689,0.62946866,1910.1,1910.0,3.21356008]
[1680663084928,1.097,1910.3,1910.0,3.21356008]
[1680663085134,1.097,1910.3,1910.1,1.0850151]
[1680663085997,0.63303891,1910.2,1910.1,1.0850151]
[1680663087351,0.63303891,1910.2,1910.1,1.6085451]
[1680663087641,0.63303891,1910.2,1910.1,1.88051008]
[1680663091363,30.04504606,1910.7,1910.1,10.01279263]
[1680663091518,0.11504606,1910.7,1910.6,0.78508]
[1680663091722,0.10704606,1910.7,1910.6,1.60806618]
[1680663091946,0.10704606,1910.7,1910.6,0.78508]
[1680663092319,0.10704606,1910.7,1910.6,1.60806618]
[1680663092921,0.10704606,1910.7,1910.6,0.26169]
[1680663093125,0.10704606,1910.7,1910.5,2.80499436]
[1680663093341,0.10704606,1910.7,1910.6,0.78508]
[1680663096763,0.10704606,1910.7,1910.5,1.45858818]
[1680663097767,0.10704606,1910.7,1910.5,1.72029818]
[1680663098821,0.10704606,1910.7,1910.5,1.45858818]
[1680663100172,0.58497272,1910.6,1910.5,4.45858818]
[1680663100326,0.58497272,1910.6,1910.5,4.72028818]
[1680663100527,0.58497272,1910.6,1910.5,5.91757073]
[1680663100737,0.58497272,1910.6,1910.5,7.36957073]
[1680663100969,0.10704606,1910.7,1910.5,7.10787073]
[1680663101970,0.10704606,1910.7,1910.5,4.452]
[1680663102173,0.10704606,1910.7,1910.5,4.45]
[1680663102471,0.73507606,1910.7,1910.5,1.45]
[1680663102673,0.81958367,1910.7,1910.5,1.45]
[1680663103545,1.90658367,1910.7,1910.2,4.8968]
[1680663103877,1.90658367,1910.7,1910.2,4.8888]
[1680663104232,0.23,1910.6,1910.2,4.8888]
[1680663104433,0.20938,1910.4,1910.1,0.008]
[1680663104665,0.20938,1910.4,1909.9,15.98298618]
[1680663104912,0.20938,1910.4,1909.9,15.99098618]
[1680663105432,0.20938,1910.4,1909.9,0.002]
[1680663105433,1.094,1910.1,1909.9,0.002]
[1680663105754,1.93165,1910.1,1910.0,0.412]
[1680663106068,1.93165,1910.1,1909.6,0.006]
[1680663106069,2.983045,1910.1,1909.6,0.006]
[1680663106272,2.753045,1910.1,1909.5,15.99098618]
[1680663106881,0.20944,1909.8,1909.5,15.99098618]
[1680663107064,0.20944,1909.8,1909.5,0.008]
[1680663107263,0.20944,1909.8,1909.4,0.82298618]
[1680663107264,0.381671,1909.8,1909.4,0.82898618]
[1680663107449,0.381671,1909.8,1909.3,0.92298618]
[1680663107450,1.087,1909.6,1909.3,0.92298618]
[1680663107656,1.087,1909.6,1909.3,0.1]
[1680663107854,0.73712,1909.5,1909.3,0.1]
[1680663108351,3.96128255,1909.4,1909.3,0.1]
[1680663108706,5.42768255,1909.4,1909.3,0.1]
[1680663108855,5.42968255,1909.4,1909.3,0.1]
[1680663112000,4.59173255,1909.4,1909.3,0.1]
[1680663112179,5.0597758,1909.4,1909.3,0.1]
[1680663112357,5.0617758,1909.4,1909.3,0.1]
[1680663112565,2.42749325,1909.4,1909.3,0.1]
[1680663112887,1.95545,1909.4,1909.3,0.1]
[1680663113200,2.51649536,1909.4,1909.3,0.1]
[1680663115388,2.51521897,1909.4,1909.3,0.1]
[1680663115561,2.51321897,1909.4,1909.3,0.1]
[1680663117209,10.64550152,1909.4,1909.3,0.1]
[1680663117374,7.40371667,1909.4,1909.3,0.1]
[1680663122158,6.30999306,1909.4,1909.3,0.1]
[1680663122560,6.30999306,1909.4,1909.3,0.09782315]
[1680663125202,11.80799306,1909.4,1909.3,0.09782315]
[1680663125362,6.30999306,1909.4,1909.3,0.09782315]
[1680663129812,11.19189306,1909.4,1909.3,0.09782315]
[1680663131904,10.54292306,1909.4,1909.3,0.09782315]
[1680663132112,9.44792306,1909.4,1909.3,0.09782315]
[1680663132897,10.70484306,1909.4,1909.3,0.09782315]
[1680663133981,10.93484306,1909.4,1909.3,0.09782315]
[1680663136380,12.03184306,1909.4,1909.3,0.09782315]
[1680663140027,11.19389306,1909.4,1909.3,0.09782315]
[1680663141675,0.56304536,1909.4,1909.3,0.09782315]
[1680663141963,0.56104536,1909.4,1909.3,0.09782315]
[1680663146773,0.55755038,1909.4,1909.3,0.09782315]
[1680663152081,1.41600038,1909.4,1909.3,0.09782315]
[1680663153166,4.05028293,1909.4,1909.3,0.09782315]
[1680663153367,5.62610522,1909.4,1909.3,0.09782315]
[1680663153586,5.62810522,1909.4,1909.3,0.09782315]
[1680663156785,8.63410522,1909.4,1909.3,0.09782315]
[1680663159244,8.00565522,1909.4,1909.3,0.09782315]
[1680663159443,8.21513522,1909.4,1909.3,0.09782315]
[1680663159643,5.21513522,1909.4,1909.3,0.09782315]
[1680663160178,5.63410522,1909.4,1909.3,0.09782315]
[1680663160381,11.13210522,1909.4,1909.3,0.09782315]
[1680663160983,5.62810522,1909.4,1909.3,0.09782315]
[1680663162866,4.99965522,1909.4,1909.3,0.09782315]
[1680663163192,0.78755038,1909.4,1909.3,0.09782315]
[1680663163597,0.55755038,1909.4,1909.3,0.09782315]
[1680663163962,0.20947,1909.5,1909.3,0.09782315]
[1680663164174,2.84375255,1909.5,1909.3,0.09782315]
[1680663164558,2.63428255,1909.5,1909.3,0.09782315]
[1680663165037,0.55746609,1909.4,1909.3,0.09782315]
[1680663165894,0.20947,1909.6,1909.3,0.09782315]
[1680663166094,0.43947,1909.5,1909.3,0.09782315]
[1680663166675,0.43947,1909.5,1909.3,0.09440091]
[1680663166676,2.63428255,1909.4,1909.3,0.09440091]
[1680663166996,2.86428255,1909.4,1909.3,0.09440091]
[1680663167183,0.23,1909.4,1909.3,0.09440091]
[1680663167360,0.43948,1909.4,1909.3,0.09440091]